Cogmind - Beta 12 @@@ ROGUE MODE // 2023.05.15 @ 23:33:08 Player: Mr Goldstein Result: Destroyed by Y-54 Guardian with Gatling Laser Performance ------------- Evolutions (3) 1500 Regions Visited (7) 1400 Robots Destroyed (4) 20 Value Destroyed (77) 77 Prototype IDs (0) 0 Alien Tech Used (0) 0 Bonus (1170) 1170 TOTAL SCORE: 4167 Bonus ------- Pacifist 470 Entered Garrisons 200 Entered DSFs 500 Cogmind --------- Core Integrity 0/700 Matter 285/300 Energy 99/100 System Corruption 1% Temperature Cool (6) Movement Core (50) Location -7/Garrison Parts ------- > --- POWER (1) -------- (None) > --- PROPULSION (2) --- (None) > --- UTILITY (8) ------ Launcher Guidance Computer Launcher Guidance Computer > --- WEAPON (2) ------- (None) > --- INVENTORY (5) ---- Grenade Launcher Peak State ------------ > --- POWER ------------ (None) > --- PROPULSION ------- (None) > --- UTILITY ---------- Launcher Guidance Computer Launcher Guidance Computer Launcher Guidance Computer Launcher Guidance Computer > --- WEAPON ----------- Grenade Launcher > --- INVENTORY -------- (None) [Rating: 17] Favorites ----------- Power None Propulsion None Utility Launcher Guidance Computer Processor Launcher Guidance Computer Weapon Grenade Launcher Launcher Grenade Launcher Build | -11 -10 -9 -9 -8 -7 -7 -7 ------- Run | Jun Mat Mat Min Mat Fac DSF Gar Slots Evolved 6 | . . 2 . 2 2 . . Power . | . . . . . . . . Propulsion . | . . . . . . . . Utility 6 | . . 2 . 2 2 . . Weapon . | . . . . . . . . Parts Attached 6 | . . . . 5 . . 1 Power . | . . . . . . . . Engine . | . . . . . . . . Core . | . . . . . . . . Reactor . | . . . . . . . . Propulsion . | . . . . . . . . Treads . | . . . . . . . . Leg . | . . . . . . . . Wheel . | . . . . . . . . Hover . | . . . . . . . . Flight . | . . . . . . . . Utility 4 | . . . . 4 . . . Device . | . . . . . . . . Storage . | . . . . . . . . Processor 4 | . . . . 4 . . . Hackware . | . . . . . . . . Protection . | . . . . . . . . Artifact . | . . . . . . . . Weapon 2 | . . . . 1 . . 1 Energy Gun . | . . . . . . . . Energy Cannon . | . . . . . . . . Ballistic Gun . | . . . . . . . . Ballistic Cannon . | . . . . . . . . Launcher 2 | . . . . 1 . . 1 Special Weapon . | . . . . . . . . Impact Weapon . | . . . . . . . . Slashing Weapon . | . . . . . . . . Piercing Weapon . | . . . . . . . . Special Melee Weapon . | . . . . . . . . Unidentified Prototypes . | . . . . . . . . Parts Lost 2 | . . . . . . 1 1 Power . | . . . . . . . . Propulsion . | . . . . . . . . Utility 2 | . . . . . . 1 1 Weapon . | . . . . . . . . Highest Loss Streak 1 | . . . . . . 1 1 To Critical Strikes . | . . . . . . . . Average Slot Usage (%) 19 | . . . . 27 30 28 22 Processor 19 | . . . . 27 30 28 22 Naked Turns 105 | . 36 33 24 12 . . . Heaviest Build 3 | . . . . . . . 3 Greatest Support 3 | 3 3 3 3 3 3 3 3 Greatest Overweight (x) . | . . . . . . . . Average Overweight (x) . | . . . . . . . . Largest Inventory Capacity 5 | 5 5 5 5 5 5 5 5 Average Capacity 5 | 5 5 5 5 5 5 5 5 Most Carried 1 | . 1 1 1 1 1 1 1 Average Carried . | . . 1 1 . 1 1 . Final Capacity 5 | 5 5 5 5 5 5 5 5 Final Carried 1 | . 1 1 1 1 1 1 1 Class Distribution -------------------- 100% | Mutant Dominant Class ---------------- Mutant | -10/Materials Mutant | -9/Materials Mutant | -9/Mines Mutant | -8/Materials Mutant | -7/Factory Mutant | -7/DSF Mutant | -7/Garrison Resources | -11 -10 -9 -9 -8 -7 -7 -7 ----------- Run | Jun Mat Mat Min Mat Fac DSF Gar Matter Collected 270 | 200 . . . . 63 7 . Remotely . | . . . . . . . . Salvage Created 43 | . . . . 43 . . . Parts 10 | . . . . 10 . . . Haulers Intercepted . | . . . . . . . . Recyclers Shooed . | . . . . . . . . Parts Field Recycled . | . . . . . . . . Retrieved Matter . | . . . . . . . . Parts Self-Destructed . | . . . . . . . . Prevented . | . . . . . . . . Kills | -11 -10 -9 -9 -8 -7 -7 -7 ------- Run | Jun Mat Mat Min Mat Fac DSF Gar Combat Hostiles Destroyed 4 | . . . . 4 . . . AOE 4 | . . . . 4 . . . Classes Destroyed 2 | . . . . 2 . . . Swarmer 3 | . . . . 3 . . . Duelist 1 | . . . . 1 . . . Best Kill Streak 4 | . . . . 4 . . . Combat Bots Only 4 | . . . . 4 . . . Max Kills in Single Turn 2 | . . . . 2 . . . Gunslinging . | . . . . . . . . Exploded 2 | . . . . 2 . . . Melee . | . . . . . . . . Uniques/NPCs Destroyed . | . . . . . . . . Combat | -11 -10 -9 -9 -8 -7 -7 -7 -------- Run | Jun Mat Mat Min Mat Fac DSF Gar Damage Taken 1014 | . . . . 274 47 308 385 Core 929 | . . . . 229 36 308 356 Absorbed by Shields 16 | . . . . . . . 16 Core Remaining (%) 89 | 100 100 . 100 58 . . . Volleys Fired 3 | . . . . 2 . . 1 Largest 1 | . . . . 1 . . 1 Hottest 30 | . . . . 30 . . 30 Shots Fired 3 | . . . . 2 . . 1 Gun . | . . . . . . . . Cannon . | . . . . . . . . Launcher 3 | . . . . 2 . . 1 Special . | . . . . . . . . Kinetic . | . . . . . . . . Thermal . | . . . . . . . . Explosive 3 | . . . . 2 . . 1 Electromagnetic . | . . . . . . . . Robot Hit Streak 2 | . . . . 2 . . . Robot Miss Streak . | . . . . . . . . Penetration Max . | . . . . . . . . Secondary Targets . | . . . . . . . . Shots Hit Robots 2 | . . . . 2 . . . Core Hits 7 | . . . . 7 . . . Critical Kills . | . . . . . . . . Critical Parts Destroyed . | . . . . . . . . Critical Strikes . | . . . . . . . . Melee Attacks . | . . . . . . . . Impact . | . . . . . . . . Slashing . | . . . . . . . . Piercing . | . . . . . . . . Sneak Attacks . | . . . . . . . . Combat Hostiles . | . . . . . . . . Follow-up Attacks . | . . . . . . . . Damage Inflicted 371 | . . . . 371 . . . Guns . | . . . . . . . . Cannons . | . . . . . . . . Explosions 371 | . . . . 371 . . . Melee . | . . . . . . . . Ramming . | . . . . . . . . Kinetic . | . . . . . . . . Thermal . | . . . . . . . . Explosive 371 | . . . . 371 . . . Electromagnetic . | . . . . . . . . Impact . | . . . . . . . . Slashing . | . . . . . . . . Piercing . | . . . . . . . . Highest Corruption 1 | . . . . . . . 1 Average Corruption 1 | . . . . . . . 1 Corruption Purged . | . . . . . . . . Corruption Blocked . | . . . . . . . . Overload Shots . | . . . . . . . . Overflow Damage . | . . . . . . . . Projectiles . | . . . . . . . . Explosions . | . . . . . . . . Melee . | . . . . . . . . Knockbacks . | . . . . . . . . Impact . | . . . . . . . . Kinetic . | . . . . . . . . Secondary . | . . . . . . . . Self-Inflicted Damage . | . . . . . . . . Shots . | . . . . . . . . Rammed . | . . . . . . . . Targets Rammed . | . . . . . . . . Kicked . | . . . . . . . . Crushed . | . . . . . . . . Highest Temperature 23 | . . . . 23 . . . Average Temperature 17 | . . . . 17 . . . Received Heat Transfer 204 | . . . . 180 . . 24 Siege Activations . | . . . . . . . . Robots Corrupted . | . . . . . . . . Combat Hostiles . | . . . . . . . . Parts Fried . | . . . . . . . . Impact Corruptions . | . . . . . . . . Robots Melted . | . . . . . . . . Combat Hostiles . | . . . . . . . . Parts Melted . | . . . . . . . . Heat Transferred . | . . . . . . . . Parts Sabotaged . | . . . . . . . . Parts Stolen . | . . . . . . . . Parts Stripped . | . . . . . . . . Power Chain Reactions . | . . . . . . . . Missiles Intercepted . | . . . . . . . . Alert | -11 -10 -9 -9 -8 -7 -7 -7 ------- Run | Jun Mat Mat Min Mat Fac DSF Gar Peak Influence 150 | . . 8 3 150 97 67 69 Initial 67 | . . . 3 . 67 67 42 Average 42 | . . 7 3 50 86 63 44 Maximum Alert Level . | . . . . . . . . Low Security (%) 100 | 100 100 100 100 100 100 100 100 Level 1 . | . . . . . . . . Level 2 . | . . . . . . . . Level 3 . | . . . . . . . . Level 4 . | . . . . . . . . Level 5 . | . . . . . . . . High Security . | . . . . . . . . Max Security . | . . . . . . . . Squads Dispatched 2 | . . 1 . 1 . . . Investigation 1 | . . 1 . . . . . Extermination . | . . . . . . . . Reinforcement 1 | . . . . 1 . . . Assault . | . . . . . . . . Garrison . | . . . . . . . . Intercept . | . . . . . . . . Searches Triggered . | . . . . . . . . Construction Impeded . | . . . . . . . . Haulers Reinforced . | . . . . . . . . Active Scanning Responses . | . . . . . . . . Cargo Convoy Interrupts . | . . . . . . . . Stealth | -11 -10 -9 -9 -8 -7 -7 -7 --------- Run | Jun Mat Mat Min Mat Fac DSF Gar Distress Signals 1 | . . . . 1 . . . Communications Jammed . | . . . . . . . . Distress Signals . | . . . . . . . . Times Spotted 21 | . . . . 14 . 1 6 Peak Tracking Total 16 | . . . . 16 . 1 9 Tactical Retreats 1 | . . . . . . . 1 Traps | -11 -10 -9 -9 -8 -7 -7 -7 ------- Run | Jun Mat Mat Min Mat Fac DSF Gar Traps Triggered 4 | . . . . . 1 . 3 Indirectly . | . . . . . . . . Trap Hack Attempts . | . . . . . . . . Triggered . | . . . . . . . . Disarmed . | . . . . . . . . Reprogrammed . | . . . . . . . . Reused . | . . . . . . . . Traps Extracted . | . . . . . . . . Installed . | . . . . . . . . Triggered . | . . . . . . . . Machines | -11 -10 -9 -9 -8 -7 -7 -7 ---------- Run | Jun Mat Mat Min Mat Fac DSF Gar Machines Disabled . | . . . . . . . . Max in Single Turn . | . . . . . . . . Machines Repaired . | . . . . . . . . Machines Sabotaged . | . . . . . . . . Overloaded Fab Kills . | . . . . . . . . Hacking | -11 -10 -9 -9 -8 -7 -7 -7 --------- Run | Jun Mat Mat Min Mat Fac DSF Gar Machines Accessed 4 | . . 1 . 1 1 . 1 Terminals 4 | . . 1 . 1 1 . 1 Fabricators . | . . . . . . . . Repair Stations . | . . . . . . . . Recycling Units . | . . . . . . . . Scanalyzers . | . . . . . . . . Garrison Access . | . . . . . . . . Total Hacks 9 | . . 3 . 3 2 . 1 Successful 4 | . . 1 . 2 1 . . Failed 5 | . . 2 . 1 1 . 1 Catastrophic 2 | . . 1 . . . . 1 Database Lockouts . | . . . . . . . . Manual 6 | . . 3 . 3 . . . Terminals 9 | . . 3 . 3 2 . 1 Fabricators . | . . . . . . . . Repair Stations . | . . . . . . . . Recycling Units . | . . . . . . . . Scanalyzers . | . . . . . . . . Garrison Access . | . . . . . . . . Terminal Hacks 4 | . . 1 . 2 1 . . Open DSF 1 | . . . . . 1 . . Branch Access Points 3 | . . 1 . 2 . . . Fabricator Hacks . | . . . . . . . . Repair Station Hacks . | . . . . . . . . Recycling Unit Hacks . | . . . . . . . . Scanalyzer . | . . . . . . . . Garrison Access Hacks . | . . . . . . . . Unauthorized Hacks . | . . . . . . . . Terminals . | . . . . . . . . Fabricators . | . . . . . . . . Repair Stations . | . . . . . . . . Recycling Units . | . . . . . . . . Scanalyzers . | . . . . . . . . Garrison Access . | . . . . . . . . Data Cores Recovered . | . . . . . . . . Used . | . . . . . . . . Hacking Detections 4 | . . 1 . 1 1 . 1 Full Trace Events 1 | . . 1 . . . . . Feedback Events . | . . . . . . . . Feedback Blocked . | . . . . . . . . Robot Schematics Acquired . | . . . . . . . . Robots Built . | . . . . . . . . Authchips . | . . . . . . . . Time . | . . . . . . . . Total Robot Build Rating . | . . . . . . . . Part Schematics Acquired . | . . . . . . . . Parts Built . | . . . . . . . . Authchips . | . . . . . . . . Time . | . . . . . . . . Total Part Build Rating . | . . . . . . . . Parts Repaired . | . . . . . . . . Time . | . . . . . . . . Parts Recycled . | . . . . . . . . Recycled Matter . | . . . . . . . . Retrieved Matter . | . . . . . . . . Retrieved Components . | . . . . . . . . Parts Scanalyzed . | . . . . . . . . Part Schematics Acquired . | . . . . . . . . Parts Damaged . | . . . . . . . . Bothacking | -11 -10 -9 -9 -8 -7 -7 -7 ------------ Run | Jun Mat Mat Min Mat Fac DSF Gar Used RIF Installer . | . . . . . . . . Robots Hacked . | . . . . . . . . Non-combat . | . . . . . . . . Combat . | . . . . . . . . Robot Hacks Applied . | . . . . . . . . Relay Couplers Released . | . . . . . . . . Fabnet Peak Effective % . | . . . . . . . . Robots Rewired . | . . . . . . . . Allies Hacked . | . . . . . . . . Hacks Repelled . | . . . . . . . . Allies | -11 -10 -9 -9 -8 -7 -7 -7 -------- Run | Jun Mat Mat Min Mat Fac DSF Gar Total Allies . | . . . . . . . . Largest Group . | . . . . . . . . Highest-Rated Group . | . . . . . . . . Highest-Rated Ally . | . . . . . . . . Total Orders . | . . . . . . . . Ally Attacks . | . . . . . . . . Total Damage . | . . . . . . . . Kills . | . . . . . . . . Allies Corrupted . | . . . . . . . . Allies Melted . | . . . . . . . . Intel | -11 -10 -9 -9 -8 -7 -7 -7 ------- Run | Jun Mat Mat Min Mat Fac DSF Gar Robot Analysis Total . | . . . . . . . . Derelict Logs Recovered 1 | . . . 1 . . . . Drone Launches . | . . . . . . . . Drone Recoveries . | . . . . . . . . Exploration | -11 -10 -9 -9 -8 -7 -7 -7 ------------- Run | Jun Mat Mat Min Mat Fac DSF Gar Turns Passed 368 | 10 36 33 24 64 60 36 105 Spaces Moved 615 | 21 69 66 47 104 119 71 118 Core 615 | 21 69 66 47 104 119 71 118 Treads . | . . . . . . . . Legs . | . . . . . . . . Wheels . | . . . . . . . . Hover . | . . . . . . . . Flight . | . . . . . . . . Fastest Speed 50 | 50 50 50 50 50 50 50 50 Average Speed 50 | 50 50 50 50 50 50 50 50 Slowest Speed 50 | 50 50 50 50 50 50 50 50 Overloaded Moves . | . . . . . . . . Propulsion Burnouts . | . . . . . . . . Robots Hopped . | . . . . . . . . Cave-ins Triggered . | . . . . . . . . Exploration Rate (%) 23 | 4 16 11 15 16 5 87 32 Regions Visited 7 Branch Regions 1 Pre-discovered Areas 1 | . . . 1 . . . . Known Exits Taken 2 | . . 1 . . 1 . . Unknown Exits Taken 4 | 1 1 . 1 1 . . . Scrap Searched . | . . . . . . . . Spaces Dug 7 | . . . . . . . 7 Terrain Destroyed 12 | . . . . 5 . . 7 Melee . | . . . . . . . . Projectile . | . . . . . . . . AOE 12 | . . . . 5 . . 7 Terrain Rammed . | . . . . . . . . Walls Destroyed . | . . . . . . . . Machines Disabled . | . . . . . . . . Actions | -11 -10 -9 -9 -8 -7 -7 -7 --------- Run | Jun Mat Mat Min Mat Fac DSF Gar Total 662 | 20 69 65 46 111 118 70 163 Wait . | . . . . . . . . Move 608 | 20 68 65 46 103 118 70 118 Hop . | . . . . . . . . Pick Up 1 | . 1 . . . . . . Fast Attach 4 | . . . . 4 . . . Attach 2 | . . . . 1 . . 1 Detach 2 | . . . . 1 . . 1 Swap . | . . . . . . . . Drop . | . . . . . . . . Fire 3 | . . . . 2 . . 1 Melee . | . . . . . . . . Ram . | . . . . . . . . Kick . | . . . . . . . . Crush . | . . . . . . . . Escape Stasis 42 | . . . . . . . 42 Rewire . | . . . . . . . . Trap . | . . . . . . . . Miscellaneous . | . . . . . . . . Route ------- -11/Junkyard -10/Materials -9/Materials (discovered 2 exits: *Min x2) -9/Mines -8/Materials -7/Factory -7/DSF -7/Garrison History --------- Turn | Location | Event 5 | -11/Junkyard | Discovered new exit (range 15) 11 | -11/Junkyard | Entered Materials 41 | -10/Materials | Discovered new exit (range 13) 47 | -10/Materials | Entered another Materials area 47 | -9/Materials | Evolved 2 slots: Utility x2 51 | -9/Materials | Identified exit to Mines 80 | -9/Materials | Entered Mines 101 | -9/Mines | Discovered new exit (range 8) 104 | -9/Mines | Entered Materials 104 | -8/Materials | Evolved 2 slots: Utility x2 161 | -8/Materials | Discovered new exit (range 13) 168 | -8/Materials | Entered Factory 168 | -7/Factory | Evolved 2 slots: Utility x2 227 | -7/Factory | Identified exit to DSF 228 | -7/Factory | Entered DSF 254 | -7/DSF | Discovered new exit (range 14) 258 | -7/DSF | Additional patrols routed to DSF 264 | -7/DSF | Entered Garrison 311 | -7/Garrison | Build established: Mutant 329 | -7/Garrison | Triggered checkpoint 333 | -7/Garrison | Core integrity fell below 50% 357 | -7/Garrison | Core integrity fell below 20% 369 | -7/Garrison | Destroyed by Y-54 Guardian with Gatling Laser Last Messages --------------- 00329_ Beams of light sweep through the air. An alarm sounds. 00333_ Connecting with Garrison Terminal... 00333_ Current location identified: Garrison 00337_ Triggered Stasis Trap. 00337_ A bubble of rippling energy engulfs the area. 00337_ Field strength at 94. 00337_ Field strength at 88. 00338_ Field strength at 82. 00339_ Field strength at 76. 00340_ Field strength at 70. 00341_ Field strength at 64. 00342_ Field strength at 58. 00343_ Field strength at 52. 00344_ Field strength at 46. 00345_ Field strength at 32. 00346_ Field strength at 26. 00347_ Field strength at 20. 00348_ Field strength at 6. 00349_ Stasis field depleted. 00351_ Launcher Guidance Computer destroyed. Map ----- +----------------------------------------------------+ | ??????????????????????????????????????????# | | ??????????????????????????????????????????" | | ??????????????????????????????????????????" | | ??????????????????????????????????????????" | | ??????????????????????????????????????????" | | ??????????????????????????????????????????# | | ?????????????????????????????????####?????# | | ?????????????????????????????????# ?????# | | ?????????????????????????????????# ?????# | | ?????????????????????????????????# #?????# | | ?????????????????????????????????# #????## | | ?????????????????????????????????# #????#T | | ?????????????????????????????????# #????## | | ?????????????????????????????????# ##????# | | ?????????????????????????????????# ?????# | | ?????????????????????????????????# #?????# | | ?????????????????????????????????# #?????# | | ????????????????####?#############++####### | | ??????????????### #?# | | ??????????????#"# #?# ^ | | ??????????????#" #?# | | ???????????????" #?# ################## | | ???????????????? #?# #????????????????? | | ????????????????# #?# #????????????????? | | ????????????????# #?# #????????????????? | | ????????????????# @#?# #????????????????? | | ????????????????# #?# #????????????????? | | ??????????????### #?# #????????????????? | | ??????????????# s#?# #????????????????? | | ??????????????# Y s+ / #????????????????? | | ??????????????# Y ### #????????????????? | | ??????????????### #?# #????????????????? | | ????????????????# #?# #????????????????? | | ????????????????# ### #????????????????? | | ????????????????# #????????????????? | | ????????????????# #????????????????? | | ????????????????###### #????????????????? | | ?????????????????????# #????????????????? | | ?????????????????????# #????????????????? | | ?????????????????????# #????????????????? | | ????????????????????? #????????????????? | | ????????????????????? #????????????????? | | ????????????????????? #????????????????? | | ?????????????????????#####????????????????? | | ??????????????????????????????????????????? | | ??????????????????????????????????????????? | | ??????????????????????????????????????????? | | ??????????????????????????????????????????? | | ??????????????????????????????????????????? | | ??????????????????????????????????????????? | +----------------------------------------------------+ Best States ------------- Heat Dissipation 34 Energy Generation 5 Energy Capacity 100 Matter Stores 300 Matter Capacity 300 Sight Range 16 Terrain Scan Density 10 Evasion (%) 50 Launcher Accuracy 80 Item Schematics ----------------- None Robot Schematics ------------------ None Fabricated ------------ Nothing Alien Tech Used ----------------- None Achievements -------------- None Challenges ------------ None Game ------ Seed ColdUtilityWarhead Manual? 0 Play Time 00:04:42 Cumulative 214.8 hours Start 2023.05.15 @ 23:29:14 End 2023.05.15 @ 23:33:08 Sessions 1 Manual Loads 0 Difficulty Rogue Special Mode None Game No. 637 Rogue 637 Adventurer 0 Explorer 0 Win Type - Total 9 Types 7/0/1/1/0/0/0/0/0 Lore% 82 Gallery% 80 Achievement% 71 Wizard Run 0 Options --------- ASCII 0 Keyboard 0 Movement Numpad Keybinds 0 Fullscreen 1 Font 16/SmallcapsGlow Map View 75x55 Tactical HUD 1 Map Filters NONE Filters NONE Steam 1 RUN: 35ac9083-4867-490b-8071-163fbbc7f283